Cogmind - Beta 9.6 @@@ ROGUE MODE // 2020.07.30 @ 18:42:53 Player: Espresso Result: Self-destructed Performance ------------- Evolutions (1) 500 Regions Visited (3) 600 Robots Destroyed (15) 75 Value Destroyed (111) 111 Prototype IDs (0) 0 Alien Tech Used (0) 0 Bonus (0) 0 TOTAL SCORE: 1286 Bonus ------- None Cogmind --------- Core Integrity 294/400 Matter 242/300 Energy 2/100 System Corruption 0% Temperature Cool (0) Movement Flying (200) Ox2 Location -9/Materials Parts ------- > --- POWER (1) -------- (None) > --- PROPULSION (4) --- Flight Unit > --- UTILITY (2) ------ Improved Terrain Scanner Seismic Analyzer > --- WEAPON (2) ------- Ion Cannon Assault Rifle > --- INVENTORY (4) ---- High-capacity Storage Unit Weight Redist. System Advanced Weight Redist. System Peak State ------------ > --- POWER ------------ Light Ion Engine > --- PROPULSION ------- Flight Unit Flight Unit > --- UTILITY ---------- Improved Terrain Scanner Seismic Analyzer > --- WEAPON ----------- Ion Cannon Ion Cannon > --- INVENTORY -------- High-capacity Storage Unit Weight Redist. System Advanced Weight Redist. System Assault Rifle [Rating: 12] Favorites ----------- Power Light Ion Engine Engine Light Ion Engine Propulsion Wheel Wheel Wheel Flight Unit Flight Unit Utility Seismic Analyzer Device Improved Terrain Scanner Processor Seismic Analyzer Weapon Light Assault Rifle Energy Cannon Ion Cannon Ballistic Gun Light Assault Rifle Build | -11 -10 -10 -9 ------- Run | Scr Mat Min Mat Slots Evolved 2 | . . . 2 Power . | . . . . Propulsion 2 | . . . 2 Utility . | . . . . Weapon . | . . . . Parts Attached 15 | 8 3 . 4 Power 2 | 1 1 . . Engine 2 | 1 1 . . Core . | . . . . Reactor . | . . . . Propulsion 5 | 2 2 . 1 Treads . | . . . . Leg . | . . . . Wheel 2 | 2 . . . Hover . | . . . . Flight 3 | . 2 . 1 Utility 3 | 3 . . . Device 1 | 1 . . . Storage . | . . . . Processor 2 | 2 . . . Hackware . | . . . . Protection . | . . . . Artifact . | . . . . Weapon 5 | 2 . . 3 Energy Gun . | . . . . Energy Cannon 2 | . . . 2 Ballistic Gun 3 | 2 . . 1 Ballistic Cannon . | . . . . Launcher . | . . . . Special Weapon . | . . . . Impact Weapon . | . . . . Slashing Weapon . | . . . . Piercing Weapon . | . . . . Special Melee Weapon . | . . . . Unidentified Prototypes . | . . . . Parts Lost 4 | . 1 . 3 Power 2 | . 1 . 1 Propulsion 2 | . . . 2 Utility . | . . . . Weapon . | . . . . Highest Loss Streak 3 | . 1 . 3 Average Slot Usage (%) 93 | . 98 100 82 Engine 12 | . 12 14 10 Wheel 10 | . 18 . . Flight 17 | . 9 28 29 Device 12 | . 14 14 11 Processor 12 | . 14 14 11 Energy Cannon 1 | . . . 3 Ballistic Gun 24 | . 28 28 17 Naked Turns . | . . . . Heaviest Build 16 | 7 7 7 16 Greatest Support 20 | 20 20 8 12 Greatest Overweight (x) 1 | . . . 1 Average Overweight (x) . | . . . . Largest Inventory Capacity 4 | 4 4 4 4 Average Capacity 4 | 4 4 4 4 Most Carried 4 | 3 4 4 4 Average Carried 2 | 1 3 4 3 Final Capacity 4 | 4 4 4 4 Final Carried 4 | 2 4 4 3 Class Distribution -------------------- 90% | Mutant 9% | Scavenger-Mutant Dominant Class ---------------- Mutant | -10/Materials Scavenger-Mutant | -10/Mines Scavenger-Mutant | -9/Materials Resources | -11 -10 -10 -9 ----------- Run | Scr Mat Min Mat Matter Collected 408 | 376 32 . . Remotely . | . . . . Salvage Created 370 | 223 101 . 46 Parts 33 | 22 6 . 5 Haulers Intercepted 1 | . 1 . . Recyclers Shooed . | . . . . Parts Field Recycled . | . . . . Retrieved Matter . | . . . . Parts Self-Destructed . | . . . . Prevented . | . . . . Kills | -11 -10 -10 -9 ------- Run | Scr Mat Min Mat Combat Hostiles Destroyed 6 | . 3 . 3 Guns 3 | . 3 . . Cannons 3 | . . . 3 Classes Destroyed 5 | 3 2 . . Worker 1 | 1 . . . Tunneler 6 | 6 . . . Hauler 1 | . 1 . . Recycler 1 | 1 . . . Swarmer 6 | . 3 . 3 Best Kill Streak 3 | 2 3 . 3 Combat Bots Only 3 | . 3 . 3 Max Kills in Single Turn 1 | 1 1 . 1 Gunslinging . | . . . . Exploded . | . . . . Melee . | . . . . Uniques/NPCs Destroyed . | . . . . Combat | -11 -10 -10 -9 -------- Run | Scr Mat Min Mat Damage Taken 504 | . 134 . 370 Core 138 | . 32 . 106 Absorbed by Shields . | . . . . Core Remaining (%) 93 | 100 . 87 . Volleys Fired 41 | 24 12 . 5 Largest 2 | 2 2 . 2 Hottest 120 | 40 40 . 120 Shots Fired 72 | 48 15 . 9 Gun 64 | 48 15 . 1 Cannon 8 | . . . 8 Launcher . | . . . . Special . | . . . . Kinetic 64 | 48 15 . 1 Thermal 8 | . . . 8 Explosive . | . . . . Electromagnetic . | . . . . Robot Hit Streak 7 | 7 5 . 2 Robot Miss Streak 5 | 3 5 . 2 Penetration Max . | . . . . Secondary Targets . | . . . . Shots Hit Robots 41 | 29 9 . 3 Core Hits 18 | 10 5 . 3 Critical Hits 1 | 1 . . . Critical Kills 1 | 1 . . . Critical Parts Destroyed . | . . . . Melee Attacks . | . . . . Impact . | . . . . Slashing . | . . . . Piercing . | . . . . Sneak Attacks . | . . . . Combat Hostiles . | . . . . Follow-up Attacks . | . . . . Damage Inflicted 529 | 314 99 . 116 Guns 413 | 314 99 . . Cannons 116 | . . . 116 Explosions . | . . . . Melee . | . . . . Ramming . | . . . . Kinetic 413 | 314 99 . . Thermal 116 | . . . 116 Explosive . | . . . . Electromagnetic . | . . . . Impact . | . . . . Slashing . | . . . . Piercing . | . . . . Highest Corruption . | . . . . Average Corruption . | . . . . Corruption Purged . | . . . . Overload Shots . | . . . . Overflow Damage . | . . . . Projectiles . | . . . . Explosions . | . . . . Melee . | . . . . Knockbacks . | . . . . Impact . | . . . . Kinetic . | . . . . Secondary . | . . . . Self-Inflicted Damage . | . . . . Shots . | . . . . Rammed . | . . . . Targets Rammed . | . . . . Kicked . | . . . . Crushed . | . . . . Highest Temperature 173 | . 8 . 173 Average Temperature 67 | . 5 . 85 Received Heat Transfer 42 | . . . 42 Siege Activations . | . . . . Robots Corrupted . | . . . . Combat Hostiles . | . . . . Parts Fried . | . . . . Impact Corruptions . | . . . . Robots Melted . | . . . . Combat Hostiles . | . . . . Parts Melted . | . . . . Heat Transferred 185 | . . . 185 Parts Sabotaged . | . . . . Parts Stolen . | . . . . Parts Stripped . | . . . . Power Chain Reactions . | . . . . Missiles Intercepted . | . . . . Alert | -11 -10 -10 -9 ------- Run | Scr Mat Min Mat Peak Influence 127 | 20 127 64 94 Average Influence 7 | 2 28 59 33 Maximum Alert Level . | . . . . Low Security (%) 100 | 100 100 100 100 Level 1 . | . . . . Level 2 . | . . . . Level 3 . | . . . . Level 4 . | . . . . Level 5 . | . . . . High Security . | . . . . Max Security . | . . . . Squads Dispatched 3 | . 3 . . Investigation . | . . . . Extermination . | . . . . Reinforcement 3 | . 3 . . Assault . | . . . . Garrison . | . . . . Intercept . | . . . . Construction Impeded . | . . . . Haulers Reinforced . | . . . . Stealth | -11 -10 -10 -9 --------- Run | Scr Mat Min Mat Distress Signals 1 | . . . 1 Communications Jammed . | . . . . Distress Signals . | . . . . Times Spotted 17 | . 7 2 8 Peak Tracking Total 6 | . 3 2 6 Tactical Retreats . | . . . . Traps | -11 -10 -10 -9 ------- Run | Scr Mat Min Mat Traps Triggered . | . . . . Indirectly . | . . . . Trap Hack Attempts . | . . . . Triggered . | . . . . Disarmed . | . . . . Reprogrammed . | . . . . Reused . | . . . . Traps Extracted . | . . . . Installed . | . . . . Triggered . | . . . . Machines | -11 -10 -10 -9 ---------- Run | Scr Mat Min Mat Machines Disabled . | . . . . Max in Single Turn . | . . . . Machines Sabotaged . | . . . . Garrisons Compromised . | . . . . Overloaded Fab Kills . | . . . . Fab Network Shutdowns . | . . . . Hacking | -11 -10 -10 -9 --------- Run | Scr Mat Min Mat Machines Accessed . | . . . . Terminals . | . . . . Fabricators . | . . . . Repair Stations . | . . . . Recycling Units . | . . . . Scanalyzers . | . . . . Garrison Access . | . . . . Total Hacks . | . . . . Successful . | . . . . Failed . | . . . . Catastrophic . | . . . . Database Lockouts . | . . . . Manual . | . . . . Terminals . | . . . . Fabricators . | . . . . Repair Stations . | . . . . Recycling Units . | . . . . Scanalyzers . | . . . . Garrison Access . | . . . . Terminal Hacks . | . . . . Fabricator Hacks . | . . . . Repair Station Hacks . | . . . . Recycling Unit Hacks . | . . . . Scanalyzer . | . . . . Garrison Access Hacks . | . . . . Unauthorized Hacks . | . . . . Terminals . | . . . . Fabricators . | . . . . Repair Stations . | . . . . Recycling Units . | . . . . Scanalyzers . | . . . . Garrison Access . | . . . . Data Cores Recovered . | . . . . Used . | . . . . Hacking Detections . | . . . . Full Trace Events . | . . . . Feedback Events . | . . . . Feedback Blocked . | . . . . Robot Schematics Acquired . | . . . . Robots Built . | . . . . Matter . | . . . . Time . | . . . . Total Robot Build Rating . | . . . . Part Schematics Acquired . | . . . . Parts Built . | . . . . Matter . | . . . . Time . | . . . . Total Part Build Rating . | . . . . Parts Repaired . | . . . . Time . | . . . . Parts Recycled . | . . . . Recycled Matter . | . . . . Retrieved Matter . | . . . . Retrieved Components . | . . . . Parts Scanalyzed . | . . . . Part Schematics Acquired . | . . . . Parts Damaged . | . . . . Bothacking | -11 -10 -10 -9 ------------ Run | Scr Mat Min Mat Used RIF Installer . | . . . . Robots Hacked . | . . . . Non-combat . | . . . . Combat . | . . . . Robot Hacks Applied . | . . . . Relay Couplers Released . | . . . . Robots Rewired . | . . . . Allies Hacked . | . . . . Hacks Repelled . | . . . . Allies | -11 -10 -10 -9 -------- Run | Scr Mat Min Mat Total Allies . | . . . . Largest Group . | . . . . Highest-Rated Group . | . . . . Highest-Rated Ally . | . . . . Total Orders . | . . . . Ally Attacks . | . . . . Total Damage . | . . . . Kills . | . . . . Allies Corrupted . | . . . . Allies Melted . | . . . . Intel | -11 -10 -10 -9 ------- Run | Scr Mat Min Mat Robot Analysis Total . | . . . . Derelict Logs Recovered 1 | . . 1 . Drone Launches . | . . . . Drone Recoveries . | . . . . Exploration | -11 -10 -10 -9 ------------- Run | Scr Mat Min Mat Turns Passed 2774 | 2335 248 36 155 Spaces Moved 926 | 646 151 75 54 Core 4 | 4 . . . Treads . | . . . . Legs . | . . . . Wheels 660 | 642 18 . . Hover . | . . . . Flight 262 | . 133 75 54 Fastest Speed 34 | 50 37 37 34 Average Speed 67 | 79 42 37 40 Slowest Speed 117 | 80 80 37 117 Overloaded Moves . | . . . . Propulsion Burnouts . | . . . . Robots Hopped 1 | . 1 . . Cave-ins Triggered . | . . . . Exploration Rate (%) 30 | 47 41 27 8 Regions Visited 3 Branch Regions 1 Pre-discovered Areas . | . . . . Known Exits Taken . | . . . . Unknown Exits Taken 3 | 1 1 1 . Scrap Searched . | . . . . Spaces Dug . | . . . . Terrain Destroyed . | . . . . Melee . | . . . . Projectile . | . . . . AOE . | . . . . Actions | -11 -10 -10 -9 --------- Run | Scr Mat Min Mat Total 2999 | 2419 319 82 179 Wait 2002 | 1737 146 8 111 Move 921 | 645 148 74 54 Hop 1 | . 1 . . Pick Up 12 | 4 6 . 2 Fast Attach 7 | 6 . . 1 Attach 5 | 2 1 . 2 Detach . | . . . . Swap 3 | . 2 . 1 Drop 7 | 1 3 . 3 Fire 41 | 24 12 . 5 Melee . | . . . . Ram . | . . . . Kick . | . . . . Crush . | . . . . Escape Stasis . | . . . . Rewire . | . . . . Trap . | . . . . Miscellaneous . | . . . . Route ------- -11/Scrapyard -10/Materials (discovered 2 exits: [*Mat] / [*Min]) -10/Mines -9/Materials History --------- Turn | Location | Event 12 | -11/Scrapyard | Discovered new exit (range 14) 2336 | -11/Scrapyard | Entered Materials 2337 | -10/Materials | Build established: Mutant 2563 | -10/Materials | Discovered new exit (range 15) 2572 | -10/Materials | Discovered new exit (range 13) 2584 | -10/Materials | Entered Mines 2595 | -10/Mines | Joined a pair of Derelicts in attacking an 0b10 outpost 2616 | -10/Mines | Discovered new exit (range 12) 2617 | -10/Mines | Learned Materials terminal intel 2620 | -10/Mines | Entered Materials 2620 | -9/Materials | Evolved 2 slots: Propulsion x2 2621 | -9/Materials | Loaded intel: 12 terminal locations 2775 | -9/Materials | Self-destructed Last Messages --------------- U-05 Engineer lays Concrete. T-07 Excavator is excavating. S-10 Pest destroyed. K-01 Serf collects debris. Flight Unit destroyed. R-06 Scavenger collects Lgt. Cannon. K-01 Serf collects debris. Lgt. Ion Engine destroyed. S-10 Pest destroyed. K-01 Serf collects debris. R-06 Scavenger collects Flight Unit. S-10 Pest destroyed. K-01 Serf collects debris. Dropped Ion Cannon. R-06 Scavenger collects Lgt. Assault Rifle. K-01 Serf collects debris. R-06 Scavenger collects Lgt. Assault Rifle. U-05 Engineer lays Concrete. K-01 Serf collects debris. U-05 Engineer lays Concrete. Map ----- +----------------------------------------------------+ | ????????????????????????????????? " ? ?# # | | ???????????????????????????????????R" ## # | | ????????????????????????????????? "?"??## # | | ???????????????????????????????????##??##""" # | | ???????????????????????? ??????? ##??#?#""" / | | ???????????????????????# ????????##??#?#""" # | | ???????????????????????# ? ???????#?###""" # | | ???????"T"?????????????+ ????????#??###""" # | | ???????"""?????????????# ????????###??# # | | ???????????????????????# ? ????????#?####+###### | | ???????????????????????# g ??#???????#??### ##?#?# | | ???????????????????#?#?# g ?#???#???##??### ###### | | ????????????????????#??# #????#?#???##?## ##??## | | ?????????""??????????#?# ################ ##### | | ?????????"T??? ????????# a | | ?????????""??????#???#?# | | ???????????????????????# | | ????????????? ???????## = ##############+### | | ???????????????? ???#?### %* #####??#?????? ## | | ??????????????? ???????## s g # #?????"???? #? | | ?????????????????#?#???## r u ?#??#???????? #? | | ?????????????#?#?#?#????#%% k ##???????"????? #? | | ?????????????????? #???## #?#????##""???? #? | | ???????????" ?"? #?#??# r#????##????????? #? | | ??????????"???????????### # #???#???#? ???? +? | | ???????????? ?""???#?## @ # #???#????????????#? | | ????????????? ??? ????#==! []# #?#?#?#?# ????????? | | ???????????? ????????##==!! ]# #?#?????#?#???????? | | ?????????????? ? ?##?######## #???#??#? ????????? | | ?????????????????????????????? #??#??????????????? | | ????????????????#???? ????? ?? ??#?#??# ?????????? | | ??????????? ?????? ?"?? ?????? #???#?#?? ????????? | | ??????????? ???#??????"???"?????#???????? ???????? | | ?????????????????? ?"?"?????????????##??"T"??????? | | ????????????? ??#?? "?? ?"? ???#??????#?"""??????? | | ?????????????????? ?"?????" ????##???????????????? | | ????????????????? ? ????? ??????????????????????? | | ????????????????#????#???#???#???????????????????? | | ??????????????????????? ??????? ? ? ????????????? | | ?????????????????? ????? ? ????????????????????? | | ?????????????????? ????? ????????????????????????? | | ?????????????????????????????????????????????????? | | ?????????????????????????????????????????????????? | | ?????????????????????????????????????????????????? | | ?????????????????????????????????????????????????? | | ?????????????????????????????????????????????????? | | ??????????????????"T"????????????????????????????? | | ?????????????????????????????????????????????????? | | ?????????????????????????????????????????????????? | | ?????????????????????????????????????????????????? | +----------------------------------------------------+ Best States ------------- Heat Dissipation 28 Energy Generation 10 Energy Capacity 125 Matter Stores 300 Matter Capacity 300 Sight Range 16 Terrain Scan Range 16 Terrain Scan Density 110 Evasion (%) 63 Item Schematics ----------------- None Robot Schematics ------------------ None Fabricated ------------ Nothing Alien Tech Used ----------------- None Achievements -------------- Storm Trooper Challenges ------------ None Game ------ Seed HardenedAngularCanceller Manual? 0 Play Time 00:13:39 Cumulative 0.9 hours Start 2020.07.30 @ 18:30:52 End 2020.07.30 @ 18:42:53 Sessions 1 Manual Loads 0 Difficulty Rogue Special Mode None Game No. 2 Rogue 2 Adventurer 0 Explorer 0 Win Type - Total 0 Types 0/0/0/0/0/0/0 Lore% 0 Gallery% 3 Achievement% 3 Wizard Run 0 Options --------- ASCII 0 Keyboard 0 Movement Numpad Keybinds 0 Fullscreen 1 Font 18/TerminusBold Map View 76x50 Tactical HUD 0 Map Filters NONE Filters NONE Steam 1 RUN: 31183879-b892-4e10-964d-3e6fa401d4d1